fUST/lending_fUST_20251212
["ID","MTS","AMOUNT","RATE_DAILY","PERIOD"]
[398351281,1765549848742,-1217.79265093,0.00015342,2]
[398351282,1765549848751,-2000.0,0.00015342,2]
[398351283,1765549848760,-2000.0,0.00015342,2]
[398351284,1765549848769,-2000.0,0.00015342,2]
[398351285,1765549848779,-2000.0,0.00015342,2]
[398351286,1765549848789,-2000.0,0.00015342,2]
[398351287,1765549848798,-500.0,0.0001541,2]
[398351288,1765549848807,-2500.0,0.00015464,2]
[398351289,1765549848816,-2500.0,0.00015464,2]
[398351290,1765549848826,-1500.0,0.00015464,2]
[398351291,1765549848835,-2500.0,0.00015464,2]
[398351292,1765549848844,-1500.0,0.00015464,2]
[398351293,1765549848855,-425.86985941,0.00015464,2]
[398351294,1765549848864,-2500.0,0.00015464,2]
[398351295,1765549848873,-2500.0,0.00015464,2]
[398351296,1765549848883,-2500.0,0.00015464,2]
[398351297,1765549848892,-2500.0,0.00015464,2]
[398351298,1765549848902,-2500.0,0.00015464,2]
[398351299,1765549848912,-1000.0,0.00015486,2]
[398351300,1765549848921,-159.46764179,0.000155,2]
[398351301,1765549848931,-796.19226871,0.00015652,2]
[398351302,1765549848941,-500.0,0.00015684,2]
[398351303,1765549848950,-231.0,0.00015851,2]
[398351304,1765549848960,-1500.0,0.00015864,2]
[398351305,1765549848969,-475.0,0.0001589,2]
[398351306,1765549848979,-475.0,0.0001589,2]
[398351307,1765549848988,-560.0,0.0001589,2]
[398351308,1765549848998,-2500.0,0.0001589,2]
[398351309,1765549849008,-2223.95119122,0.0001589,2]
[398351310,1765549849017,-500.0,0.0001589,2]
[398351311,1765549849027,-2500.0,0.0001589,2]
[398351312,1765549849036,-2500.0,0.0001589,2]
[398351313,1765549849046,-2500.0,0.0001589,2]
[398351314,1765549849055,-2500.0,0.0001589,2]
[398351315,1765549849065,-160.43557245,0.000159,2]
[398351316,1765549849074,-160.43557243,0.000159,2]
[398351317,1765549849084,-160.43557243,0.000159,2]
[398351318,1765549849094,-500.0,0.00015958,2]
[398351319,1765549849104,-3000.0,0.00016,2]
[398351320,1765549849113,-3000.0,0.0001601,2]
[398351321,1765549849123,-3000.0,0.00016012,2]
[398351322,1765549849132,-3000.0,0.00016012,2]
[398351323,1765549849142,-3000.0,0.00016012,2]
[398351324,1765549849155,-3000.0,0.00016012,2]
[398351325,1765549849165,-3000.0,0.00016012,2]
[398351326,1765549849174,-3000.0,0.00016012,2]
[398351327,1765549849183,-1500.0,0.00016012,2]
[398351328,1765549849193,-3000.0,0.00016012,2]
[398351329,1765549849202,-3000.0,0.0001602,2]
[398351330,1765549849211,-3000.0,0.0001603,2]
[398351331,1765549849221,-3000.0,0.0001604,2]
[398351332,1765549849230,-3000.0,0.0001605,2]
[398351333,1765549849239,-3000.0,0.0001606,2]
[398351334,1765549849250,-3000.0,0.0001607,2]
[398351335,1765549849261,-3000.0,0.0001608,2]
[398351336,1765549849271,-3000.0,0.0001609,2]
[398351337,1765549849280,-3000.0,0.000161,2]
[398351338,1765549849289,-3000.0,0.0001611,2]
[398351339,1765549849298,-3000.0,0.0001612,2]
[398351340,1765549849308,-3000.0,0.0001613,2]
[398351341,1765549849317,-3000.0,0.0001614,2]
[398351342,1765549849326,-3000.0,0.0001615,2]
[398351343,1765549849335,-3000.0,0.0001616,2]
[398351344,1765549849345,-1600.0,0.00016164,2]
[398351345,1765549849355,-3000.0,0.0001617,2]
[398351346,1765549849364,-3000.0,0.0001618,2]
[398351347,1765549849374,-3000.0,0.0001619,2]
[398351348,1765549849383,-3000.0,0.000162,2]
[398351349,1765549849393,-3000.0,0.0001621,2]
[398351350,1765549849401,-3000.0,0.0001622,2]
[398351351,1765549849410,-160.43557243,0.00016229,2]
[398351352,1765549849419,-3000.0,0.0001623,2]
[398351353,1765549849428,-500.0,0.00016232,2]
[398351354,1765549849437,-3000.0,0.0001624,2]
[398351355,1765549849446,-3000.0,0.0001625,2]
[398351356,1765549849455,-3000.0,0.0001626,2]
[398351357,1765549849464,-3000.0,0.0001627,2]
[398351358,1765549849473,-3000.0,0.0001628,2]
[398351359,1765549849482,-3000.0,0.0001629,2]
[398351360,1765549849492,-3000.0,0.000163,2]
[398351361,1765549849502,-3000.0,0.0001631,2]
[398351362,1765549849511,-3000.0,0.0001632,2]
[398351363,1765549849521,-3000.0,0.0001633,2]
[398351364,1765549849531,-4944.593199,0.0001634,2]
[398351365,1765549849540,-1800.0,0.00016412,2]
[398351366,1765549849550,-3196.0,0.00016437,2]
[398351367,1765549849559,-500.0,0.00016438,2]
[398351368,1765549849569,-590.7960953,0.00016438,2]
[398351369,1765549849578,-660.0,0.00016438,2]
[398351370,1765549849588,-330.313595,0.00016438,2]
[398351371,1765549849597,-330.313595,0.00016438,2]
[398351372,1765549849607,-330.313595,0.00016438,2]
[398351373,1765549849616,-330.313595,0.00016438,2]
[398351374,1765549849625,-330.313595,0.00016438,2]
[398351375,1765549849634,-330.313595,0.00016438,2]
[398351376,1765549849643,-330.313595,0.00016438,2]
[398351377,1765549849652,-330.313595,0.00016438,2]
[398351378,1765549849661,-330.313595,0.00016438,2]
[398351379,1765549849671,-330.313595,0.00016438,2]
[398351380,1765549849680,-330.313595,0.00016438,2]
[398351381,1765549849689,-330.313595,0.00016438,2]
[398351382,1765549849698,-330.313595,0.00016438,2]
[398351383,1765549849707,-330.313595,0.00016438,2]
[398351384,1765549849716,-330.313595,0.00016438,2]
[398351385,1765549849725,-330.313595,0.00016438,2]
[398351386,1765549849735,-330.313595,0.00016438,2]
[398351387,1765549849744,-330.313595,0.00016438,2]
[398351388,1765549849753,-330.313595,0.00016438,2]
[398351389,1765549849762,-330.313599,0.00016438,2]
[398351390,1765549849771,-455.131359,0.00016438,2]
[398351391,1765549849780,-455.131359,0.00016438,2]
[398351392,1765549849789,-455.131359,0.00016438,2]
[398351393,1765549849798,-455.131359,0.00016438,2]
[398351394,1765549849807,-455.131359,0.00016438,2]
[398351395,1765549849816,-455.131359,0.00016438,2]
[398351396,1765549849825,-455.131359,0.00016438,2]
[398351397,1765549849835,-455.131359,0.00016438,2]
[398351398,1765549849844,-455.131359,0.00016438,2]
[398351399,1765549849853,-455.131359,0.00016438,2]
[398351400,1765549849863,-455.131359,0.00016438,2]
[398351401,1765549849872,-455.131359,0.00016438,2]
[398351402,1765549849882,-455.131359,0.00016438,2]
[398351403,1765549849891,-455.131359,0.00016438,2]
[398351404,1765549849900,-455.131359,0.00016438,2]
[398351405,1765549849909,-455.131359,0.00016438,2]
[398351406,1765549849918,-455.131359,0.00016438,2]
[398351407,1765549849928,-455.131359,0.00016438,2]
[398351408,1765549849937,-455.131359,0.00016438,2]
[398351409,1765549849946,-455.131358,0.00016438,2]
[398351410,1765549849956,-500.0,0.00016438,2]
[398351411,1765549849965,-154.37656047,0.00016438,2]
[398351412,1765549849975,-151.0,0.00016438,2]
[398351413,1765549849984,-151.0,0.00016438,2]
[398351414,1765549849993,-151.0,0.00016438,2]
[398351415,1765549850002,-151.0,0.00016438,2]
[398351416,1765549850011,-151.0,0.00016438,2]
[398351417,1765549850021,-151.0,0.00016438,2]
[398351418,1765549850030,-151.0,0.00016438,2]
[398351419,1765549850040,-151.0,0.00016438,2]
[398351420,1765549850049,-151.0,0.00016438,2]
[398351421,1765549850058,-151.0,0.00016438,2]
[398351422,1765549850067,-151.0,0.00016438,2]
[398351423,1765549850076,-151.0,0.00016438,2]
[398351424,1765549850085,-151.0,0.00016438,2]
[398351425,1765549850095,-151.0,0.00016438,2]
[398351426,1765549850104,-151.0,0.00016438,2]
[398351427,1765549850114,-151.0,0.00016438,2]
[398351428,1765549850123,-151.0,0.00016438,2]
[398351429,1765549850132,-167.086035,0.00016438,2]
[398351430,1765549850142,-672.132359,0.00016438,2]
[398351431,1765549850155,-672.132359,0.00016438,2]
[398351432,1765549850164,-672.132359,0.00016438,2]
[398351433,1765549850174,-672.132359,0.00016438,2]
[398351434,1765549850183,-672.132359,0.00016438,2]
[398351435,1765549850194,-672.132359,0.00016438,2]
[398351436,1765549850203,-672.132359,0.00016438,2]
[398351437,1765549850212,-672.132359,0.00016438,2]
[398351438,1765549850222,-672.132359,0.00016438,2]
[398351439,1765549850232,-672.132359,0.00016438,2]
[398351440,1765549850241,-672.132359,0.00016438,2]
[398351441,1765549850251,-672.132359,0.00016438,2]
[398351442,1765549850260,-672.132359,0.00016438,2]
[398351443,1765549850270,-672.132359,0.00016438,2]
[398351444,1765549850279,-672.132359,0.00016438,2]
[398351445,1765549850289,-672.132359,0.00016438,2]
[398351446,1765549850299,-672.132359,0.00016438,2]
[398351447,1765549850309,-672.132359,0.00016438,2]
[398351448,1765549850319,-672.132359,0.00016438,2]
[398351449,1765549850329,-672.13236,0.00016438,2]
[398351450,1765549850338,-163.59785044,0.00016438,2]
[398351451,1765549850348,-2798.31140917,0.00016438,2]
[398351452,1765549850362,-500.0,0.00016438,2]
[398351453,1765549850371,-3000.0,0.00016438,2]
[398351454,1765549850381,-3000.0,0.00016438,2]
[398351455,1765549850390,-3000.0,0.00016438,2]
[398351456,1765549850400,-259.10838795,0.00016438,2]
[398351457,1765549850409,-181.88,0.0001644,2]
[398351458,1765549850419,-181.88,0.0001644,2]
[398351459,1765549850431,-181.88,0.0001644,2]
[398351460,1765549850440,-500.0,0.00016505,2]
[398351461,1765549850451,-3500.0,0.0001656,2]
[398351462,1765549850460,-3500.0,0.0001656,2]
[398351463,1765549850470,-2278.04545937,0.0001656,2]
[398351464,1765549850480,-3500.0,0.0001656,2]
[398351465,1765549850490,-3500.0,0.0001656,2]
[398351466,1765549850499,-2527.70513452,0.0001656,2]
[398351467,1765549850509,-3500.0,0.0001656,2]
[398351468,1765549850519,-500.0,0.00016601,2]
[398351469,1765549850528,-1608.54,0.00016712,2]
[398351470,1765549850538,-500.0,0.00016779,2]
[398351471,1765549850547,-500.77826272,0.00016875,2]
[398351472,1765549850556,-2100.0,0.0001696,2]
[398351473,1765549850566,-1608.54,0.00016986,2]
[398351474,1765549850576,-760.0,0.00016986,2]
[398351475,1765549850587,-1000.0,0.00016986,2]
[398351476,1765549850596,-3500.0,0.00016986,2]
[398351477,1765549850608,-3500.0,0.00016986,2]
[398351478,1765549850617,-3500.0,0.00016986,2]
[398351479,1765549850627,-111030.85753768,0.00017,2]
[398351480,1765549850636,-1000.0,0.00017035,2]
[398351481,1765549850645,-244.0,0.00017035,2]
[398351482,1765549850654,-500.0,0.00017053,2]
[398351483,1765549850663,-160.43557243,0.00017105,2]
[398351484,1765549850673,-1777.76947787,0.00017108,2]
[398351485,1765549850683,-4000.0,0.00017108,2]
[398351486,1765549850692,-4000.0,0.00017108,2]
[398351487,1765549850701,-4000.0,0.00017108,2]
[398351488,1765549850710,-4000.0,0.00017108,2]
[398351489,1765549850719,-1608.54,0.0001726,2]
[398351490,1765549850728,-2400.0,0.0001726,2]
[398351491,1765549850737,-441.0207648,0.0001726,2]
[398351492,1765549850746,-289.3233095,0.0001726,2]
[398351493,1765549850756,-353.4805169,0.0001726,2]
[398351494,1765549850765,-302.1700238,0.0001726,2]
[398351495,1765549850774,-302.1700238,0.0001726,2]
[398351496,1765549850784,-302.1700238,0.0001726,2]
[398351497,1765549850793,-302.1700238,0.0001726,2]
[398351498,1765549850803,-302.1700238,0.0001726,2]
[398351499,1765549850813,-302.1700238,0.0001726,2]
[398351500,1765549850822,-500.0,0.00017327,2]
[398351501,1765549850831,-327.6800753,0.000174,2]
[398351502,1765549850841,-2400.0,0.00017508,2]
[398351503,1765549850850,-1608.54,0.00017534,2]
[398351504,1765549850862,-860.0,0.00017534,2]
[398351505,1765549850872,-1500.0,0.00017534,2]
[398351506,1765549850882,-4000.0,0.00017534,2]
[398351507,1765549850892,-4000.0,0.00017534,2]
[398351508,1765549850901,-4000.0,0.00017534,2]
[398351509,1765549850911,-2128.28465218,0.000176,2]
[398351510,1765549850921,-500.0,0.00017601,2]
[398351511,1765549850930,-4500.0,0.00017656,2]
[398351512,1765549850941,-4500.0,0.00017656,2]
[398351513,1765549850951,-4500.0,0.00017656,2]
[398351514,1765549850960,-4500.0,0.00017656,2]
[398351515,1765549850969,-20168.85635547,0.000178,3]
[398351516,1765549850979,-1608.54,0.00017808,2]
[398351517,1765549850989,-258.0,0.00017851,2]
[398351518,1765549850999,-500.0,0.00017875,2]
[398351519,1765549851008,-184.0,0.0001789,3]
[398351520,1765549851018,-8901.39683431,0.000179,2]
[398351521,1765549851027,-415.0,0.00017932,2]
[398351522,1765549851036,-160.43557243,0.00017982,2]
[398351523,1765549851046,-40435.21,0.00018,3]
[398351524,1765549851055,-2000.0,0.00018,2]
[398351525,1765549851065,-1000.0,0.00018,2]
[398351526,1765549851074,-161123.8159803,0.00018,2]
[398351527,1765549851084,-29897.84349528,0.00018,2]
[398351528,1765549851093,-235.0,0.00018,2]
[398351529,1765549851102,-1089.05626939,0.00018,2]
[398351530,1765549851124,-3097.4470297,0.00018,2]
[398351531,1765549851135,-3998.41259666,0.00018,2]
[398351532,1765549851148,-378.38774052,0.00018,2]
[398351533,1765549851825,-150.0,0.00011536,2]
[398351534,1765549851834,-238.12,0.00013,2]
[398351535,1765549851844,-238.12,0.000131,2]
[398351536,1765549851853,-219.37652906,0.000132,2]
[398351537,1765549851865,-18.74347094,0.000132,2]
[398351538,1765549851875,-238.12,0.000133,2]
[398351539,1765549851884,-208.38357292,0.000133,2]
[398351540,1765549851895,-29.73642708,0.000133,2]
[398351541,1765549851904,-238.12,0.000134,2]
[398351542,1765549851913,-103.88204574,0.000135,2]
[398351543,1765549851925,-134.23795426,0.000135,2]
[398351544,1765549851934,-825.65138265,0.000162,2]
[398351545,1765549851944,-22936.69636373,0.00018,2]
[398351546,1765549851953,-500.27534628,0.00018,2]
[398351547,1765549851962,-295.30641892,0.00018,3]
[398351548,1765549851973,-295.30641892,0.00018,3]
[398351549,1765549851982,-1460.530686,0.00018,2]
[398351550,1765549851991,-2700.0,0.00018056,2]
[398351551,1765549852001,-1608.54,0.00018082,2]
[398351552,1765549852011,-960.0,0.00018082,2]
[398351553,1765549852020,-2000.0,0.00018082,2]
[398351554,1765549852030,-4500.0,0.00018082,2]
[398351555,1765549852039,-4500.0,0.00018082,2]
[398351556,1765549852048,-4500.0,0.00018082,2]
[398351557,1765549852057,-302.1700238,0.00018082,2]
[398351558,1765549852065,-302.1700238,0.00018082,2]
[398351559,1765549852075,-300.7750112,0.00018082,2]
[398351560,1765549852084,-603.8219386,0.00018082,2]
[398351561,1765549852093,-3812.98275168,0.00018204,2]
[398351562,1765549852102,-5000.0,0.00018204,2]
[398351563,1765549852112,-5000.0,0.00018204,2]
[398351564,1765549852121,-5000.0,0.00018204,2]
[398351565,1765549852130,-1608.54,0.00018356,2]
[398351566,1765549852140,-272.70517618,0.00018356,2]
[398351567,1765549852154,-499.624554,0.00018493,2]
[398351568,1765549852163,-1000.0,0.000185,2]
[398351569,1765549852172,-3000.0,0.00018604,2]
[398351570,1765549852181,-1608.54,0.0001863,2]
[398351571,1765549852193,-150.0,0.0001863,2]
[398351572,1765549852202,-300.0,0.0001863,2]
[398351573,1765549852212,-450.0,0.0001863,2]
[398351574,1765549852221,-600.0,0.0001863,2]
[398351575,1765549852234,-750.0,0.0001863,2]
[398351576,1765549852252,-825.87716629,0.0001863,2]
[398351577,1765549852262,-1060.0,0.0001863,2]
[398351578,1765549852272,-2500.0,0.0001863,2]
[398351579,1765549852281,-5000.0,0.0001863,2]
[398351580,1765549852291,-5000.0,0.0001863,2]
[398351581,1765549852301,-5000.0,0.0001863,2]
[398351582,1765549852310,-1000.0,0.00018739,10]
[398351583,1765549852319,-492.0,0.00018739,10]
[398351584,1765549852328,-5500.0,0.00018752,2]
[398351585,1765549852338,-5500.0,0.00018752,2]
[398351586,1765549852347,-5500.0,0.00018752,2]
[398351587,1765549852356,-302.84859387,0.000189,2]
[398351588,1765549852367,-302.84859387,0.000189,2]
[398351589,1765549852377,-1608.54,0.00018904,2]
[398351590,1765549852386,-648.37688095,0.00018998,3]
[398351591,1765549852399,-2351.62311905,0.00018998,3]
[398351592,1765549852409,-23383.54394095,0.00019,2]
[398351593,1765549852434,-238.12,0.000136,2]
[398351594,1765549852444,-46616.45605905,0.00019,2]
[398351595,1765549852454,-21389.37125474,0.00019,2]
[398351596,1765549852464,-16600.0,0.00019,2]
[398351597,1765549852473,-500.0,0.00019,2]
[398351598,1765549852483,-47061.0,0.00019,2]
[398351599,1765549852492,-150.79517714,0.00019,2]
[398351600,1765549852501,-1000.0,0.00019,2]
[398351601,1765549852510,-302.84859387,0.00019089,2]
[398351602,1765549852520,-302.84859387,0.00019089,2]
[398351603,1765549852641,-209.98,0.000191,2]
[398351604,1765549852653,-216.94301312,0.00019152,2]
[398351605,1765549852663,-1608.76270108,0.00019178,2]
[398351606,1765549852673,-500.0,0.00019178,2]
[398351607,1765549852684,-500.0,0.00019178,2]
[398351608,1765549852693,-500.0,0.00019178,2]
[398351609,1765549852702,-500.0,0.00019178,2]
[398351610,1765549852713,-500.0,0.00019178,2]
[398351611,1765549852723,-500.0,0.00019178,2]
[398351612,1765549852734,-500.0,0.00019178,2]
[398351613,1765549852743,-500.0,0.00019178,2]
[398351614,1765549852754,-500.0,0.00019178,2]
[398351615,1765549852763,-500.0,0.00019178,2]
[398351616,1765549852772,-500.0,0.00019178,2]
[398351617,1765549852781,-500.0,0.00019178,2]
[398351618,1765549852791,-500.0,0.00019178,2]
[398351619,1765549852800,-500.0,0.00019178,2]
[398351620,1765549852810,-500.0,0.00019178,2]
[398351621,1765549852819,-500.0,0.00019178,2]
[398351622,1765549852828,-500.0,0.00019178,2]
[398351623,1765549852838,-500.0,0.00019178,2]
[398351624,1765549852847,-500.0,0.00019178,2]
[398351625,1765549852857,-500.0,0.00019178,2]
[398351626,1765549852868,-427.93862452,0.00019178,2]
[398351627,1765549852877,-1160.0,0.00019178,2]
[398351628,1765549852887,-222.59588,0.00019178,2]
[398351629,1765549852897,-222.59588,0.00019178,2]
[398351630,1765549852907,-222.59588,0.00019178,2]
[398351631,1765549852916,-222.59588,0.00019178,2]
[398351632,1765549852925,-222.59588,0.00019178,2]
[398351633,1765549852934,-222.59588,0.00019178,2]
[398351634,1765549852944,-222.59588,0.00019178,2]
[398351635,1765549852953,-222.59588,0.00019178,2]
[398351636,1765549852963,-222.59588,0.00019178,2]
[398351637,1765549852973,-222.59588,0.00019178,2]
[398351638,1765549852983,-222.59588,0.00019178,2]
[398351639,1765549852992,-222.59588,0.00019178,2]
[398351640,1765549853002,-222.59588,0.00019178,2]
[398351641,1765549853012,-222.59588,0.00019178,2]
[398351642,1765549853021,-222.59588,0.00019178,2]
[398351643,1765549853030,-222.59588,0.00019178,2]
[398351644,1765549853039,-222.59588,0.00019178,2]
[398351645,1765549853049,-222.59588,0.00019178,2]
[398351646,1765549853059,-222.59588,0.00019178,2]
[398351647,1765549853068,-222.595887,0.00019178,2]
[398351648,1765549853078,-5000.0,0.00019178,2]
[398351649,1765549853088,-5000.0,0.00019178,2]
[398351650,1765549853098,-5000.0,0.00019178,2]
[398351651,1765549853107,-5000.0,0.00019178,2]
[398351652,1765549853118,-5000.0,0.00019178,2]
[398351653,1765549853127,-838.87638561,0.00019178,2]
[398351657,1765550560399,-3000.0,0.0003735,120]
[398351658,1765550560424,-10076.6669065,0.0003735,31]
[398351659,1765550560451,-200000.0,0.0003735,30]
[398351660,1765550560476,-1000.0,0.0003735,120]
[398351661,1765550560506,-480.5105918,0.0003735,120]
[398351662,1765550560533,-148667.25045621,0.0003735,120]
[398351663,1765550560559,-5574.0,0.0003735,30]
[398351664,1765550560585,-458.14291189,0.0003735,120]
[398351665,1765550560609,-1933.70816398,0.0003735,30]
[398351666,1765550560633,-171777.02949144,0.0003735,120]
[398351667,1765550560657,-328.59403437,0.0003735,120]
[398351668,1765550560680,-801.0,0.0003735,20]
[398351669,1765550560706,-11911.9,0.0003735,20]
[398351670,1765550562482,802.1,0.0003735,20]
[398351671,1765550577884,-150.79517714,0.00021468,56]
[398351672,1765550577920,-151.84534524,0.00023238,30]
[398351673,1765550577946,-150.79517713,0.00023238,30]
[398351674,1765550577971,-157.43549722,0.00023739,30]
[398351675,1765550577996,-212.5324583,0.00023773,30]
[398351676,1765550578023,-167.53723279,0.00023773,30]
[398351677,1765550578051,-95000.0,0.00024932,30]
[398351678,1765550578079,-200.0,0.00025,120]
[398351679,1765550578103,-295.30641892,0.00025,30]
[398351680,1765550578129,-295.30641892,0.000258,30]
[398351681,1765550578159,-163.0,0.00028274,28]
[398351682,1765550578185,-339.0495744,0.00028493,30]
[398351683,1765550578209,-499.624554,0.00028767,60]
[398351684,1765550578235,-5000.0,0.000299,45]
[398351685,1765550578259,-1192.0,0.0003,120]
[398351686,1765550578285,-176.0,0.00030466,40]
[398351687,1765550578311,-397.7854818,0.00031507,30]
[398351688,1765550578334,-397.7854818,0.00031507,30]
[398351689,1765550578359,-530.0,0.00032,30]
[398351690,1765550578384,-205.0,0.0003241,33]
[398351691,1765550578410,-397.7854818,0.00032466,30]
[398351692,1765550578436,-397.7854818,0.00032466,30]
[398351693,1765550578462,-397.7854818,0.00032466,30]
[398351694,1765550578487,-397.7854818,0.00032466,30]
[398351695,1765550578512,-397.7854818,0.00032466,30]
[398351696,1765550578541,-394.7946213,0.00032466,30]
[398351697,1765550578567,-1999.0,0.00032876,120]
[398351698,1765550578591,-192.5119955,0.00032877,30]
[398351699,1765550578615,-165.4241396,0.00032877,30]
[398351700,1765550578639,-192.5119955,0.00032877,30]
[398351701,1765550578664,-165.4241396,0.00032877,30]
[398351702,1765550578690,-597.3517137,0.00032877,30]
[398351703,1765550578716,-14000.0,0.00033,20]
[398351704,1765550578740,-596.0,0.00033077,30]
[398351705,1765550578767,-596.0,0.00033077,30]
[398351706,1765550578791,-216.37,0.0003315,30]
[398351707,1765550578816,-597.3517137,0.00033699,30]
[398351708,1765550578848,-597.3517137,0.00033699,30]
[398351709,1765550578873,-165.4241396,0.00033699,30]
[398351710,1765550578897,-192.5119955,0.00033699,30]
[398351711,1765550578922,-192.5119955,0.00033699,30]
[398351712,1765550578947,-165.4241396,0.00033699,30]
[398351713,1765550578974,-597.3517137,0.00033699,30]
[398351714,1765550579001,-192.5119955,0.00033699,30]
[398351715,1765550579030,-165.4241396,0.00033699,30]
[398351716,1765550579058,-597.3517137,0.00033699,30]
[398351717,1765550579083,-597.3517137,0.00033699,30]
[398351718,1765550579112,-534.7323266,0.00033699,30]
[398351719,1765550579140,-330.8482792,0.00033699,30]
[398351720,1765550579169,-165.4241396,0.00033699,30]
[398351721,1765550579196,-597.3517137,0.00033699,30]
[398351722,1765550579224,-165.4241396,0.00033699,30]
[398351723,1765550579251,-597.3517137,0.00033699,30]
[398351724,1765550579278,-597.3517137,0.00033699,30]
[398351725,1765550579304,-597.3517137,0.00033699,30]
[398351726,1765550579329,-597.3517137,0.00033699,30]
[398351727,1765550579355,-597.3517137,0.00033699,30]
[398351728,1765550579381,-597.3517137,0.00033699,30]
[398351729,1765550579407,-597.3517137,0.00033699,30]
[398351730,1765550579432,-597.3517137,0.00033699,30]
[398351731,1765550579457,-597.3517137,0.00033699,30]
[398351732,1765550579485,-597.3517137,0.00033699,30]
[398351733,1765550579512,-597.3517137,0.00033699,30]
[398351734,1765550579537,-597.3517137,0.00033699,30]
[398351735,1765550579563,-597.3517137,0.00033699,30]
[398351736,1765550579587,-597.3517137,0.00033699,30]
[398351737,1765550579611,-597.3517137,0.00033699,30]
[398351738,1765550579635,-1133.7061294,0.00033699,30]
[398351739,1765550579660,-204.2370748,0.00033699,30]
[398351740,1765550579753,-173.0,0.00033753,63]
[398351741,1765550579780,-474.0,0.00033851,120]
[398351742,1765550579822,-596.0,0.00033904,30]
[398351743,1765550579847,-216.37,0.00033972,31]
[398351744,1765550579872,-43829.0,0.00034,120]
[398351745,1765550579896,-273.0,0.0003461,39]
[398351746,1765550579918,-596.0,0.00034731,30]
[398351747,1765550579942,-216.37,0.00034794,32]
[398351748,1765550579972,-1387.11309146,0.00034849,120]
[398351749,1765550579999,-11900.0,0.00035,30]
[398351750,1765550580024,-150.0,0.00035,69]
[398351751,1765550580047,-100236.18243513,0.00035,120]
[398351752,1765550580071,-384.51640069,0.00035,120]
[398351753,1765550580095,-200.0,0.00035,120]
[398351754,1765550580120,-213.0,0.00035,120]
[398351755,1765550580145,-50010.436207,0.00035,120]
[398351756,1765550580172,-17771.0,0.000356,120]
[398351757,1765550580198,-216.37,0.00035616,33]
[398351758,1765550580225,-501.0,0.00035851,120]
[398351759,1765550580254,-1368.999999,0.00036,120]
[398351760,1765550580283,-302.1700238,0.00036164,30]
[398351761,1765550580583,-1584.2639741,0.0003632,55]
[398351762,1765550580610,-216.37,0.00036438,34]
[398351763,1765550580634,-165.0,0.00036486,30]
[398351764,1765550580659,-200.0,0.00037064,120]
[398351765,1765550580683,-200.0,0.00037124,120]
[398351766,1765550580706,-216.37,0.0003726,35]
[398351767,1765550580736,-528.0,0.00037851,120]
[398351768,1765550580760,-3000.0,0.00037998,120]
[398351769,1765550580785,-1000.0,0.00038,120]
[398351770,1765550580810,-949.75,0.00038,30]
[398351771,1765550580834,-216.37,0.00038082,36]
[398351772,1765550580858,-520.0706005,0.000387,120]
[398351773,1765550580883,-216.37,0.00038904,37]
[398351774,1765550580909,-158.0,0.00039233,120]
[398351775,1765550580935,-200.0,0.00039544,120]
[398351776,1765550580963,-216.37,0.00039726,38]
[398351777,1765550580993,-555.0,0.00039851,120]
[398351778,1765550581026,-9138.0,0.0004,120]
[398351779,1765550581055,-2593917.59526131,0.0004,120]
[398351780,1765550581085,-463.0,0.0004,120]
[398351781,1765550581112,-295.30641892,0.0004,30]
[398351782,1765550581139,-12090.95427403,0.00040447,28]
[398351783,1765550584826,-8394.25631018,0.00040447,28]